bitfinex/quotes_ETHUSD_20240711
["timestamp","ask_amount","ask_price","bid_price","bid_amount"]
[1720703673823,0.32952609,3177.7,3176.8,0.06294173]
[1720703674027,3.14597,3178.7,3176.9,2.4004]
[1720703674237,5.35675147,3178.6,3177.0,0.30927093]
[1720703674432,2.562,3178.4,3176.9,2.4004]
[1720703674672,0.0779739,3178.3,3176.9,2.4004]
[1720703674870,0.0779739,3178.2,3176.9,2.4004]
[1720703675040,4.23643311,3178.1,3176.9,2.4004]
[1720703675240,1.16785701,3178.0,3176.9,2.4004]
[1720703675430,1.83598581,3177.9,3176.9,2.4004]
[1720703675634,1.08988311,3177.8,3176.9,2.4004]
[1720703675854,1.08988311,3178.2,3176.9,2.4004]
[1720703676055,1.08988311,3178.1,3177.0,0.04792562]
[1720703676269,1.08988311,3178.3,3176.9,2.4004]
[1720703676442,1.08988311,3178.2,3176.9,2.4004]
[1720703676773,1.08988311,3178.1,3177.0,0.554813]
[1720703676981,1.08988311,3178.1,3177.0,0.61774469]
[1720703677468,1.08988311,3178.1,3177.0,0.554813]
[1720703677688,0.0779739,3178.0,3176.9,2.4004]
[1720703677832,1.08992409,3178.0,3176.9,2.4004]
[1720703678030,1.08988684,3177.9,3176.9,2.4004]
[1720703678228,0.36518831,3178.2,3176.9,2.4004]
[1720703678229,1.08988684,3177.8,3176.9,2.4004]
[1720703678434,0.36518831,3178.2,3177.0,0.61776076]
[1720703678435,1.08988684,3177.7,3177.0,0.61776076]
[1720703678636,0.36518831,3178.2,3177.0,0.61776076]
[1720703678836,1.08985082,3178.1,3177.0,0.61776076]
[1720703679062,1.08985082,3178.0,3177.0,0.55482]
[1720703679381,1.08985082,3177.9,3177.0,0.61775766]
[1720703679592,1.08985082,3178.1,3177.1,0.30181577]
[1720703679883,1.08985082,3178.0,3177.1,0.30181577]
[1720703680043,1.08985082,3177.9,3177.1,0.30181577]
[1720703680251,1.08985082,3178.1,3176.9,2.4004]
[1720703680564,1.08985082,3178.0,3176.9,2.4004]
[1720703680734,1.08985082,3178.1,3176.9,2.4004]
[1720703681371,0.36518831,3178.2,3177.0,0.04793747]
[1720703681679,1.08989282,3178.1,3177.1,0.24483375]
[1720703682180,1.08989282,3178.0,3177.1,0.24483375]
[1720703682382,1.08989282,3177.9,3177.2,0.06293694]
[1720703682681,1.08989282,3177.8,3177.1,0.24483375]
[1720703682853,1.08989282,3177.7,3177.2,0.33924438]
[1720703683053,0.570797,3178.6,3177.2,0.33924438]
[1720703683373,1.08975087,3178.5,3177.2,0.33924438]
[1720703683681,1.08975087,3178.4,3177.2,0.33924438]
[1720703683888,1.08975087,3178.5,3177.2,0.33924438]
[1720703684065,1.08975087,3178.5,3177.1,0.24483375]
[1720703684587,0.0779739,3178.4,3177.1,0.24483375]
[1720703684878,0.0779739,3178.4,3176.9,2.4004]
[1720703684879,5.32614389,3178.3,3176.9,2.4004]
[1720703685040,3.14654,3178.1,3176.9,2.4004]
[1720703685242,1.16785705,3178.0,3176.9,2.4004]
[1720703685559,1.52132286,3177.9,3176.9,2.4004]
[1720703685776,1.08988315,3177.8,3176.9,2.4004]
[1720703686074,1.08988315,3178.0,3176.9,2.4004]
[1720703686241,3.546807,3178.4,3176.9,2.4004]
[1720703686242,1.08988315,3177.9,3176.9,2.4004]
[1720703686437,1.08988315,3178.3,3176.9,2.4004]
[1720703686638,1.08988315,3178.2,3176.9,2.4004]
[1720703686984,0.42363031,3178.1,3176.9,2.4004]
[1720703687191,1.08988315,3178.0,3176.9,2.4004]
[1720703687488,1.08988315,3177.9,3176.9,2.4004]
[1720703687657,1.08988315,3177.8,3176.9,2.4004]
[1720703688039,1.08984087,3177.7,3176.9,2.4004]
[1720703688342,1.0898855,3177.6,3177.0,0.554813]
[1720703688543,1.0898855,3177.5,3176.9,2.4004]
[1720703688767,1.31399755,3178.3,3176.9,2.4004]
[1720703688768,1.0898855,3177.4,3176.9,2.4004]
[1720703688960,1.0898855,3178.2,3176.9,2.4004]
[1720703689194,1.08986753,3178.1,3176.9,2.4004]
[1720703689371,1.08986753,3178.0,3176.9,2.4004]
[1720703689673,1.08986753,3177.9,3176.9,2.4004]
[1720703689904,0.20753657,3177.9,3176.9,2.4004]
[1720703690040,1.08986753,3177.8,3176.9,2.4004]
[1720703690239,1.08999788,3177.7,3176.9,2.4004]
[1720703690438,1.08999788,3177.6,3176.9,2.4004]
[1720703690740,1.08999788,3177.5,3176.9,2.4004]
[1720703690960,1.08999788,3177.4,3176.9,2.4004]
[1720703691176,1.08999788,3177.3,3177.0,0.06294452]
[1720703691378,0.98549816,3178.1,3176.9,2.64044]
[1720703691583,1.08991782,3177.2,3176.9,2.64044]
[1720703691738,0.98549816,3178.0,3176.9,2.64044]
[1720703692080,1.08993048,3177.9,3176.9,2.4004]
[1720703692280,1.08993048,3177.8,3176.9,2.4004]
[1720703692486,0.98549816,3177.9,3176.9,2.4004]
[1720703692487,1.08993048,3177.7,3177.0,0.06293959]
[1720703692775,2.07542864,3177.8,3176.9,2.4004]
[1720703692984,1.08993048,3177.7,3176.9,2.4004]
[1720703693357,2.07542864,3177.7,3176.9,2.4004]
[1720703693552,1.08993048,3177.6,3176.9,2.955228]
[1720703694376,2.07542864,3177.6,3176.9,2.955228]
[1720703694582,1.08993048,3177.5,3176.9,2.4004]
[1720703694794,1.08997194,3177.4,3176.9,2.4004]
[1720703694952,1.08997194,3177.3,3176.9,2.4004]
[1720703695150,1.08997194,3177.2,3176.9,2.955225]
[1720703695458,1.08997194,3177.1,3176.9,2.955225]
[1720703695642,0.98549816,3177.5,3176.9,2.955225]
[1720703695643,1.08997194,3177.0,3176.9,2.955225]
[1720703697169,0.98549816,3177.4,3176.9,2.955225]
[1720703697378,1.08992339,3177.3,3177.0,0.2955225]
[1720703697582,1.08992339,3177.2,3177.0,3.50607284]
[1720703697881,0.98549816,3177.5,3177.0,3.4431325]
[1720703698086,1.08983786,3177.4,3177.1,0.89911725]
[1720703698388,1.08983786,3177.3,3177.1,4.04656725]
[1720703698588,0.98549816,3177.7,3177.2,5.47272]
[1720703698799,1.08969822,3177.6,3177.4,3.14717]
[1720703699088,0.98549816,3178.0,3177.5,0.32101025]
[1720703699245,1.08962655,3177.9,3177.6,5.70315684]
[1720703699441,0.98549816,3178.3,3177.8,3.14675]
[1720703699646,0.98549816,3178.6,3178.1,5.63976]
[1720703699871,1.08943195,3178.5,3178.2,0.06291584]
[1720703700089,1.08943195,3178.4,3178.1,5.6398]
[1720703700273,1.08943195,3178.5,3178.1,2.4933]
[1720703700601,0.98549816,3178.3,3177.4,2.4908]
[1720703700751,0.98549816,3178.2,3177.4,2.4908]
[1720703701081,2.07513344,3178.2,3177.5,0.06292707]
[1720703701294,0.98549816,3178.4,3178.1,3.14653]
[1720703701494,1.08951367,3178.3,3177.7,3.14689]
[1720703701695,1.08951367,3178.2,3177.6,2.4908]
[1720703701844,2.07501183,3178.3,3177.7,3.20975266]
[1720703702044,4.2311553,3179.2,3177.7,3.20975266]
[1720703702045,0.98549816,3178.5,3178.1,3.14653]
[1720703702245,1.0895197,3178.4,3178.3,2.2732]
[1720703702453,0.98549816,3178.7,3178.3,6.28243376]
[1720703702693,1.98013312,3179.4,3178.7,3.14584]
[1720703702694,2.29949571,3179.2,3178.7,3.14584]
[1720703702900,1.98013312,3179.8,3178.9,3.14573]
[1720703702901,1.08925853,3179.1,3178.9,3.14573]
[1720703703050,0.98549816,3179.4,3179.0,2.3137]
[1720703703247,0.98549816,3179.5,3179.0,2.3137]
[1720703703450,1.31399755,3179.6,3179.1,0.42981531]
[1720703703451,1.08914862,3179.4,3179.1,0.42981531]
[1720703703686,1.08914862,3179.4,3179.0,2.3137]
[1720703703871,0.98549816,3179.2,3178.0,2.3137]
[1720703704077,0.98549816,3178.7,3178.0,2.3137]
[1720703704282,0.98549816,3178.7,3177.7,4.742]
[1720703704283,0.98549816,3178.4,3177.7,4.742]
[1720703704449,0.98549816,3178.2,3177.7,1.596]
[1720703704646,1.42813593,3178.1,3177.7,1.596]
[1720703704897,0.3388756,3178.1,3177.2,5.49046]
[1720703705059,0.98549816,3178.2,3177.3,0.06293079]
[1720703705244,1.65011093,3178.5,3177.2,2.3431]
[1720703705245,0.98549816,3178.5,3177.2,2.3431]
[1720703705587,2.07515122,3178.4,3177.4,3.14722]
[1720703705806,0.98549816,3178.7,3177.6,2.4324]
[1720703705959,0.98549816,3179.1,3178.1,3.1465]
[1720703706282,2.07494809,3179.0,3178.1,3.1465]
[1720703706486,0.0779739,3179.0,3177.8,2.4324]
[1720703706703,0.97399087,3178.7,3177.8,2.4324]
[1720703706990,2.06344817,3178.6,3177.8,2.4324]
[1720703707175,1.42566757,3178.5,3177.8,2.4324]
[1720703707373,1.31020114,3178.5,3177.8,2.4324]
[1720703707690,0.97399087,3178.3,3177.4,7.29]
[1720703708004,0.97399087,3178.5,3177.6,3.147]
[1720703708193,0.97399087,3178.5,3177.7,0.06292409]
[1720703708352,0.97399087,3178.5,3176.9,9.28768]
[1720703708353,0.97399087,3178.6,3177.9,3.1467]
[1720703708555,1.29865449,3178.8,3178.2,3.14642]
[1720703708556,0.97399087,3178.8,3178.2,3.14642]
[1720703708754,0.97399087,3178.9,3178.3,0.06291258]
[1720703708980,0.97399087,3179.3,3177.9,0.06291159]
[1720703709297,2.38780311,3179.4,3177.8,2.68279041]
[1720703709298,2.06334111,3179.2,3177.8,2.68279041]
[1720703709585,2.26967522,3179.1,3178.1,3.14652]
[1720703709805,1.05196477,3179.0,3177.8,2.3618]
[1720703710019,0.97399087,3178.6,3177.8,2.3618]
[1720703710152,0.97278125,3178.7,3177.8,2.59798]
[1720703710351,0.97278125,3178.7,3177.8,2.3618]
[1720703710352,2.06245246,3178.6,3177.8,2.3618]
[1720703710581,1.08966343,3178.5,3177.4,7.29]
[1720703710795,1.08969787,3178.4,3177.2,2.4197]
[1720703710962,2.06251206,3178.3,3177.2,2.4197]
[1720703711290,0.97278125,3178.5,3177.3,3.38923]
[1720703711474,2.0624934,3178.4,3177.3,0.30490227]
[1720703711680,2.0624934,3178.4,3177.5,3.14711]
[1720703711681,0.97278125,3178.4,3177.5,3.14711]
[1720703711909,0.97278125,3178.6,3177.6,0.06292535]
[1720703712110,0.97278125,3178.6,3177.3,0.24197]
[1720703712111,0.97278125,3178.6,3177.4,3.14719]
[1720703712423,2.06241007,3178.5,3177.5,0.06292766]
[1720703712626,1.52402395,3178.6,3177.4,3.14721]
[1720703712627,0.97278125,3178.6,3177.6,3.14694]
[1720703712827,0.97278125,3178.6,3177.3,0.24197]
[1720703712828,0.97278125,3178.6,3177.5,3.14708]
[1720703713127,0.98367662,3178.6,3177.7,3.14691]
[1720703713325,0.98367662,3178.6,3177.5,3.14706]
[1720703713488,1.08964867,3178.5,3177.6,0.06292661]
[1720703713683,0.98367662,3178.7,3177.7,3.14686]
[1720703713896,0.98367662,3178.7,3177.8,0.06292181]
[1720703714096,0.98367662,3178.9,3177.9,5.49416]
[1720703714295,2.07322118,3178.8,3178.0,0.06291869]
[1720703714507,0.98367662,3178.9,3178.1,0.55570787]
[1720703715035,0.98367662,3178.9,3178.2,0.0629182]
[1720703715186,0.98367662,3178.9,3178.1,0.55570787]
[1720703715386,0.98367662,3179.0,3178.1,0.55570787]
[1720703715699,1.31156883,3179.1,3178.1,0.55570787]
[1720703715700,0.98367662,3179.1,3178.2,0.06291732]
[1720703716011,0.98367662,3179.1,3178.3,0.37650652]
[1720703716216,1.08945381,3179.0,3178.3,0.43942147]
[1720703716526,0.98367662,3179.1,3178.3,0.43942147]
[1720703716735,1.08945199,3179.0,3178.3,0.43942147]
[1720703717022,0.98367662,3179.2,3178.3,3.58574147]
[1720703717232,0.98367662,3179.2,3178.4,0.36050468]
[1720703717433,0.98367662,3179.0,3178.4,0.36050468]
[1720703717592,0.98367662,3179.2,3178.4,0.36050468]
[1720703717933,0.98367662,3179.2,3178.6,3.14602]
[1720703718141,2.07302325,3179.1,3178.4,0.36050468]
[1720703718426,2.07302325,3179.1,3178.1,3.14645]
[1720703718427,0.98367662,3179.1,3178.1,3.14645]
[1720703718603,0.98367662,3179.1,3178.2,3.2092836]
[1720703718805,0.98367662,3179.2,3178.3,3.14623]
[1720703719048,1.31156883,3179.3,3178.3,3.14623]
[1720703719049,2.07309824,3179.1,3178.3,3.14623]
[1720703719192,0.98367662,3179.1,3178.5,3.14612]
[1720703719393,0.98367662,3179.2,3178.6,0.314612]
[1720703719612,1.08942756,3179.1,3178.6,0.314612]
[1720703719820,0.98367662,3179.3,3178.6,0.314612]
[1720703720094,2.07312553,3179.2,3178.6,0.314612]
[1720703720315,0.98374896,3179.3,3178.5,6.29215]
[1720703720541,0.98374896,3179.3,3178.6,3.2089362]
[1720703720707,0.98374896,3179.4,3178.6,3.2089362]
[1720703720909,1.08932972,3179.3,3178.7,3.78137662]
[1720703721128,0.98374896,3179.6,3178.8,2.2971]
[1720703721291,0.98374896,3179.4,3178.8,2.2971]
[1720703721501,1.08936749,3179.3,3178.3,5.44339]
[1720703721832,0.98374896,3179.4,3178.4,0.544339]
[1720703722040,2.07310153,3179.3,3178.4,0.544339]
[1720703722240,2.07310153,3179.2,3178.3,2.2971]
[1720703722533,0.98374896,3179.3,3178.3,2.2971]
[1720703722729,0.98374896,3179.3,3178.5,3.14613]
[1720703722894,1.08936807,3179.2,3178.3,2.2971]
[1720703723090,0.98374896,3179.3,3178.4,3.14618]
[1720703723290,1.08936767,3179.2,3178.5,3.75334585]
[1720703723507,0.98374896,3179.4,3178.6,3.14603]
[1720703723697,1.08932835,3179.3,3178.6,3.14603]
[1720703723923,0.98374896,3179.5,3178.6,3.14603]
[1720703724248,1.089315,3179.4,3178.7,3.14593]
[1720703724430,0.98374896,3179.6,3178.8,0.314593]
[1720703724744,1.08926131,3179.5,3178.8,0.314593]
[1720703724902,1.08926131,3179.4,3178.8,0.314593]
[1720703725105,1.08926131,3179.5,3178.8,0.314593]
[1720703725332,2.07301027,3179.5,3178.8,0.314593]
[1720703725544,1.08926131,3179.4,3178.8,0.314593]
[1720703725752,1.08926131,3179.4,3178.5,3.690398]
[1720703725913,0.98374896,3179.6,3178.8,3.14583]
[1720703726258,1.08925473,3179.5,3178.8,3.14583]
[1720703726404,1.08925473,3179.4,3178.9,0.314583]
[1720703726606,1.08925473,3179.6,3178.9,0.314583]
[1720703727238,1.08925473,3179.6,3178.9,0.37748657]
[1720703727441,1.08925473,3179.6,3179.1,3.14552]
[1720703727750,1.31166528,3180.0,3179.1,3.14552]
[1720703727751,1.08925473,3179.5,3179.2,3.14537]
[1720703727923,0.98374896,3180.1,3179.3,0.32082691]
[1720703728125,1.31166528,3180.2,3179.4,0.0628962]
[1720703728126,1.08912516,3180.0,3179.4,0.0628962]
[1720703728423,1.08912516,3179.9,3179.4,0.0628962]
[1720703728643,1.31166528,3180.4,3179.4,3.2081262]
[1720703728644,1.08912516,3179.8,3179.4,3.2081262]
[1720703728851,0.98374896,3180.3,3179.5,0.35289531]
[1720703729164,2.2555,3180.9,3179.6,3.14503]
[1720703729315,0.98173462,3180.5,3179.6,3.14503]
[1720703729662,1.08903997,3180.4,3179.6,3.19281406]
[1720703729960,1.08903997,3180.3,3179.8,3.14479]
[1720703730121,1.08903997,3180.2,3179.8,3.14479]
[1720703730319,0.98173462,3180.6,3179.8,3.773768]
[1720703730526,0.98173462,3180.6,3179.6,3.14499]
[1720703730527,1.08896522,3180.5,3179.7,3.14494]
[1720703730831,1.63622437,3180.9,3179.7,3.14494]
[1720703730832,1.08896522,3180.4,3179.7,3.14494]
[1720703731039,1.08896522,3180.6,3179.7,3.14494]
[1720703731241,1.08896522,3180.5,3179.8,3.1448]
[1720703731415,1.08896522,3180.4,3179.8,3.1448]
[1720703731610,0.98173462,3181.0,3180.0,5.40072]
[1720703731836,1.08883934,3180.9,3180.0,8.60819023]
[1720703732044,1.08883934,3180.8,3180.0,8.60819023]
[1720703732246,0.98173462,3181.2,3180.0,8.60819023]
[1720703732247,0.98173462,3181.2,3180.1,3.14452]
[1720703732460,1.08879431,3181.1,3180.1,3.20739927]
[1720703732610,1.6389803,3181.6,3180.3,3.14433]
[1720703732611,1.08879431,3181.0,3180.3,3.14433]
[1720703732811,0.98173462,3181.5,3180.3,3.19213364]
[1720703733017,1.08873559,3181.4,3180.4,3.14425]
[1720703733247,1.08873559,3181.3,3180.4,3.14425]
[1720703733514,0.98173462,3181.8,3180.5,3.14415]
[1720703733710,1.42155664,3181.7,3180.5,3.14415]
[1720703733913,1.08869318,3181.6,3180.5,3.20702275]
[1720703734149,1.08869318,3181.6,3180.6,3.14405]
[1720703734513,1.08869318,3181.6,3180.7,0.06287097]
[1720703734756,1.1398018,3182.2,3180.7,3.14393]
[1720703734931,1.58896255,3182.1,3180.8,3.20671772]
[1720703735132,1.08858442,3182.0,3181.0,2.4307]
[1720703735439,3.40320852,3182.6,3181.0,2.4307]
[1720703735619,3.55699024,3182.6,3181.0,2.4307]
[1720703735813,1.08850107,3182.5,3181.0,2.4307]
[1720703736123,1.55307476,3182.4,3181.0,2.4307]
[1720703736461,1.63852563,3182.3,3181.0,5.57435]
[1720703736616,1.08852563,3182.2,3181.0,5.57435]
[1720703736819,0.1161327,3183.0,3181.7,3.1429]
[1720703737041,1.08827321,3182.9,3181.7,3.1429]
[1720703737241,0.1161327,3183.0,3181.7,3.1429]
[1720703737759,0.0779739,3182.9,3181.5,3.14311]
[1720703737914,2.2703,3182.8,3181.1,12.91994]
[1720703738117,2.86780129,3182.7,3181.1,9.7764]
[1720703738318,2.555,3182.3,3181.1,7.29]
[1720703738543,0.0779739,3182.2,3180.5,26.54122]
[1720703738764,1.08859931,3182.2,3180.5,26.54122]
[1720703738926,2.555,3182.3,3180.7,3.14395]
[1720703739136,2.555,3182.3,3180.6,3.14401]
[1720703739137,1.1977039,3182.2,3180.6,3.14401]
[1720703739351,1.11973,3182.2,3180.7,3.14395]
[1720703739758,2.78982739,3182.7,3180.8,0.06286707]
[1720703739759,0.23482739,3182.7,3180.8,0.06286707]
[1720703739963,1.63852431,3182.6,3181.1,3.14349]
[1720703740145,0.23482739,3182.7,3181.0,3.14364]
[1720703740459,0.23482739,3182.7,3181.1,3.1435]
[1720703740632,0.0779739,3182.6,3181.4,3.14324]
[1720703741345,0.15685892,3182.9,3181.4,3.14324]
[1720703741536,0.1161327,3183.0,3181.5,3.14314]
[1720703742075,0.27066745,3183.0,3181.5,3.14314]
[1720703742442,0.27066745,3183.0,3181.6,3.14305]
[1720703742637,0.28256675,3182.9,3181.6,3.14305]
[1720703743151,0.1161327,3183.0,3181.6,3.14305]
[1720703743376,0.1161327,3183.0,3181.6,3.143]
[1720703743787,0.1161327,3183.0,3181.6,3.14301]
[1720703744074,0.1161327,3183.0,3181.6,6.286]
[1720703744238,0.1161327,3183.0,3181.6,3.14299]
[1720703744438,0.1161327,3183.0,3181.6,3.771611]
[1720703745187,3.1419,3182.8,3181.2,3.14344]
[1720703745395,0.6279739,3182.9,3181.2,3.14344]
[1720703745549,5.8129027,3183.0,3181.2,3.14344]
[1720703745550,2.6711327,3183.0,3181.6,3.14306]
[1720703745739,0.0779739,3182.9,3181.5,3.14315]
[1720703746043,0.27491066,3182.8,3181.5,3.457445]
[1720703746281,0.27491066,3182.8,3181.6,3.14305]
[1720703746444,0.1161327,3183.0,3181.6,3.14305]
[1720703747469,0.55,3182.9,3181.7,3.14296]
[1720703747979,0.1161327,3183.0,3181.7,3.14287]
[1720703748341,0.1161327,3183.0,3181.8,3.14286]
[1720703748739,0.1161327,3183.0,3181.9,2.3916]
[1720703748947,0.1161327,3183.0,3182.0,0.553446]
[1720703750607,0.1161327,3183.0,3181.9,2.3916]
[1720703751072,0.55,3182.9,3181.5,3.457415]
[1720703751278,0.55,3182.9,3181.7,3.14296]
[1720703751893,0.55,3182.9,3181.7,3.1429]
[1720703752049,0.55,3182.9,3181.8,0.31429]
[1720703752892,0.55,3182.9,3181.5,3.457435]
[1720703753400,0.1161327,3183.0,3181.5,3.457435]
[1720703753562,0.55,3182.9,3181.5,0.314315]
[1720703753766,0.6279739,3182.9,3181.5,0.314315]
[1720703754096,0.55,3182.8,3181.5,0.314315]
[1720703754396,0.0779739,3182.7,3181.5,0.314315]
[1720703754553,0.55,3182.6,3181.5,0.314315]
[1720703754896,0.0779739,3182.5,3181.5,0.314315]
[1720703755251,0.6279739,3182.9,3181.5,0.314315]
[1720703755454,0.32991066,3182.8,3181.5,0.314315]
[1720703755766,0.55,3182.7,3181.5,0.314315]
[1720703756287,0.32991066,3182.8,3181.5,0.314315]
[1720703756499,0.1161327,3183.0,3181.6,3.14301]
[1720703756693,0.55,3182.9,3181.6,3.14301]
[1720703756874,0.6279739,3182.9,3181.6,0.6600545]
[1720703757053,1.08831454,3182.8,3181.4,3.14326]
[1720703757250,0.55,3182.9,3181.7,3.14289]
[1720703757557,0.55,3182.9,3181.8,3.14287]
[1720703758074,0.55,3182.9,3181.7,3.14295]
[1720703758264,0.55,3182.9,3181.8,0.314295]
[1720703758779,0.55,3182.9,3181.8,3.457155]
[1720703759350,0.1161327,3183.0,3181.9,3.14276]
[1720703759868,0.1161327,3183.0,3182.3,3.14238]
[1720703760377,0.1161327,3183.0,3182.0,3.14261]
[1720703760606,0.1161327,3183.0,3182.2,3.14247]
[1720703761098,0.1161327,3183.0,3182.2,3.14242]
[1720703761556,0.1161327,3183.0,3182.3,3.14237]
[1720703762056,0.1161327,3183.0,3182.1,3.456741]
[1720703762387,0.1161327,3183.0,3182.1,0.314261]
[1720703762697,0.1161327,3183.0,3182.2,3.14239]
[1720703762912,0.1161327,3183.0,3182.3,0.3456651]
[1720703763380,1.6381198,3182.9,3181.8,3.14281]
[1720703763581,1.0881198,3182.8,3181.2,12.12]
[1720703763759,1.0881198,3182.9,3181.0,2.2656]
[1720703763960,1.08825346,3182.8,3181.7,3.14291]
[1720703764162,1.08825346,3182.7,3181.7,3.14291]
[1720703764521,1.08825346,3182.9,3181.8,0.314291]
[1720703764654,1.08827389,3182.8,3181.5,4.4031]
[1720703764859,1.08827389,3182.7,3181.5,4.4031]
[1720703765201,0.1161327,3183.0,3181.5,1.26]
[1720703765202,1.08827389,3182.6,3181.5,1.26]
[1720703765511,2.2644,3182.4,3181.5,1.26]
[1720703765653,1.08827389,3182.3,3181.5,1.26]
[1720703765859,1.08827389,3182.7,3181.9,6.28545]
[1720703766053,1.08827389,3182.6,3181.9,3.1427]
[1720703766356,0.1161327,3183.0,3181.9,3.1427]
[1720703766559,1.0881313,3182.9,3182.0,0.31427]
[1720703766777,0.1161327,3183.0,3182.0,0.31427]
[1720703766778,1.0881313,3182.8,3182.0,3.45689]
[1720703766984,1.0881313,3182.7,3182.0,0.31427]
[1720703767179,1.0881313,3182.6,3181.7,3.14293]
[1720703767380,1.0881313,3182.9,3181.5,4.40307]
[1720703767585,1.0881313,3182.9,3181.6,3.14304]
[1720703767789,0.1161327,3183.0,3181.5,4.40307]
[1720703768055,1.08818459,3182.9,3181.9,3.14268]
[1720703768331,0.1161327,3183.0,3182.1,3.14255]
[1720703768505,1.08807853,3182.9,3182.1,3.14255]
[1720703768801,0.1161327,3183.0,3182.3,3.14228]
[1720703769097,1.08804045,3182.9,3182.2,3.14239]
[1720703769279,1.08806541,3182.8,3182.3,3.770831]
[1720703769480,0.1161327,3183.0,3182.3,3.770821]
[1720703769654,1.08805372,3182.9,3182.4,0.06283335]
[1720703769982,0.1161327,3183.0,3182.5,3.14216]
[1720703770184,0.1161327,3183.0,3182.6,0.06283219]
[1720703770497,0.1161327,3183.0,3182.6,0.06283223]
[1720703770809,0.1161327,3183.0,3182.6,3.14205]
[1720703771002,0.1161327,3183.0,3182.7,3.770396]
[1720703771368,0.1161327,3183.0,3182.8,0.06282817]
[1720703771600,0.1161327,3183.0,3182.9,3.14178]
[1720703771898,0.1161327,3183.0,3182.8,3.14186]
[1720703772320,0.1161327,3183.0,3182.7,0.628416]
[1720703772618,0.1161327,3183.0,3182.3,3.1423]
[1720703772776,0.1161327,3183.0,3182.1,6.95628]
[1720703772980,1.0880631,3182.9,3182.1,6.95628]
[1720703773271,0.1161327,3183.0,3182.3,3.1423]
[1720703774114,0.1161327,3183.0,3182.4,3.1422]
[1720703774414,0.1161327,3183.0,3182.5,0.31422]
[1720703774775,0.1161327,3183.0,3182.6,3.14203]
[1720703774970,0.1161327,3183.0,3182.8,3.14186]
[1720703775212,0.1161327,3183.0,3182.8,6.28367]
[1720703775375,0.1161327,3183.0,3182.8,3.14183]
[1720703775580,0.1161327,3183.0,3182.9,3.455963]
[1720703778016,0.1161327,3183.0,3182.9,6.66056832]
[1720703778784,0.1161327,3183.0,3182.9,9.80234832]
[1720703778987,0.1161327,3183.0,3182.9,12.12164832]
[1720703779630,2.2688,3184.6,3183.6,3.14105]
[1720703779819,2.2688,3184.6,3183.6,3.76928]
[1720703779820,1.08767507,3184.5,3183.6,3.76928]
[1720703780001,1.08767507,3184.4,3183.6,3.76928]
[1720703780313,1.08767507,3184.3,3183.6,3.76928]
[1720703780479,2.2688,3184.6,3183.7,0.06281357]
[1720703780811,2.2688,3184.6,3183.6,3.76928]
[1720703780812,1.08762767,3184.5,3183.6,3.76928]
[1720703781051,1.08762767,3184.4,3183.4,3.14119]
[1720703781253,1.08762767,3184.3,3183.5,3.1411]
[1720703781421,1.08762767,3184.5,3183.3,3.1413]
[1720703781627,1.08765017,3184.4,3183.6,3.14103]
[1720703781829,1.08760481,3184.3,3183.7,0.314103]
[1720703782022,2.2688,3184.6,3183.7,0.314103]
[1720703782228,1.08763704,3184.5,3183.7,0.314103]
[1720703782454,1.08763704,3184.4,3183.7,0.314103]
[1720703782628,0.97451004,3184.9,3183.7,0.314103]
[1720703782954,1.63758211,3184.8,3183.8,0.6596183]
[1720703783124,1.08758211,3184.7,3183.8,0.6596183]
[1720703783332,1.08758211,3184.7,3183.8,3.8004483]
[1720703783541,1.08758211,3184.9,3183.9,3.1408]
[1720703783724,1.08758211,3184.8,3183.9,3.1408]
[1720703783920,1.08758211,3184.7,3184.0,0.38004183]
[1720703784250,0.275,3185.0,3184.6,2.3932]
[1720703784455,0.275,3185.0,3184.9,3.13981]
[1720703784734,0.275,3185.0,3184.0,3.52004183]
[1720703784921,0.275,3185.0,3184.1,0.35200418]
[1720703785121,0.275,3185.0,3184.1,3.49255418]
[1720703785462,0.275,3185.0,3184.2,3.20322418]
[1720703785767,0.275,3185.0,3184.3,3.14038]
[1720703785935,0.275,3185.0,3184.5,3.14018]
[1720703786262,0.275,3185.0,3184.6,0.32029792]
[1720703786475,0.275,3185.0,3184.6,3.52318225]
[1720703786971,0.275,3185.0,3184.7,2.3324]
[1720703787281,0.275,3185.0,3184.8,3.13989]
[1720703787558,0.275,3185.0,3184.8,6.27967]
[1720703787736,0.275,3185.0,3184.9,3.76022697]
[1720703788074,0.275,3185.0,3184.9,6.90003697]
[1720703789622,0.275,3185.0,3184.9,12.47514697]
[1720703789821,0.275,3185.0,3184.9,13.02514697]
[1720703790063,0.275,3185.0,3184.9,16.16495697]
[1720703790562,0.1161327,3186.2,3185.8,3.13891]
[1720703790765,0.1161327,3186.2,3185.9,0.313891]
[1720703791576,0.1161327,3186.2,3185.7,3.13899]
[1720703792074,0.1161327,3186.2,3185.7,3.13895]
[1720703793562,0.1161327,3186.2,3185.2,3.13944]
[1720703793764,0.1161327,3186.2,3185.3,3.13941]
[1720703793961,0.1161327,3186.2,3185.5,3.1392]
[1720703794162,0.1161327,3186.2,3185.6,0.31392]
[1720703795487,0.1161327,3186.2,3185.6,3.453]
[1720703795638,0.1161327,3186.2,3185.6,0.31392]
[1720703795834,0.1161327,3186.2,3185.2,3.20227129]
[1720703796035,0.1161327,3186.2,3185.2,3.1395]
[1720703796269,0.1161327,3186.2,3185.1,13.55957]
[1720703796451,0.1161327,3186.2,3185.3,3.13933]
[1720703796644,0.1161327,3186.2,3185.3,6.27867]
[1720703796872,0.1161327,3186.2,3185.4,3.767177]
[1720703797082,0.1161327,3186.2,3185.4,0.6906404]
[1720703797389,0.1161327,3186.2,3185.2,0.06276736]
[1720703797536,2.4121327,3186.2,3185.1,3.13]
[1720703797933,0.1161327,3186.2,3185.1,3.13]
[1720703798136,0.1161327,3186.2,3185.3,3.13942]
[1720703798361,0.1161327,3186.2,3185.5,3.13913]
[1720703798546,0.1161327,3186.2,3185.6,0.32019037]
[1720703799281,0.1161327,3186.2,3185.6,0.38296046]
[1720703799642,0.1161327,3186.2,3185.6,3.52207046]
[1720703799886,3.48433691,3187.5,3185.1,3.13]
[1720703799887,0.97304682,3188.3,3186.1,5.43593]
[1720703800175,0.0779739,3188.2,3186.6,1.48]
[1720703800375,5.5564039,3188.1,3186.6,1.48]
[1720703800574,1.915,3187.7,3186.1,5.4273]
[1720703800746,1.915,3187.7,3186.1,6.33136122]